bitfinex-derivatives/quotes_ETHF0:USTF0_20240829
["timestamp","ask_amount","ask_price","bid_price","bid_amount"]
[1724934763379,0.39464351,2571.4,2571.2,0.38881]
[1724934763583,0.00584351,2571.4,2571.3,0.38881]
[1724934763788,0.00584351,2571.4,2571.2,0.38882]
[1724934763982,0.00584351,2571.4,2571.0,0.00584351]
[1724934764378,0.00584351,2571.4,2571.3,0.38881]
[1724934765381,0.00584351,2571.4,2571.2,0.38882]
[1724934765580,0.00584351,2571.4,2571.0,0.00584351]
[1724934765783,0.3889,2570.7,2570.5,0.88108997]
[1724934765989,0.38887,2570.9,2570.3,4.18018]
[1724934766183,4.18563351,2571.4,2570.7,0.38889]
[1724934766387,4.07749665,2571.1,2570.7,0.38889]
[1724934766590,4.18563351,2571.4,2570.6,3.2078]
[1724934766591,4.07749665,2571.3,2570.6,3.2078]
[1724934766788,0.00584351,2571.4,2571.3,0.38881]
[1724934767287,0.38881,2571.3,2571.2,0.38881]
[1724934767487,0.38883,2571.2,2570.9,3.2078]
[1724934767789,0.00584351,2571.4,2570.9,3.2078]
[1724934767989,0.38881,2571.3,2571.0,0.38885]
[1724934768291,0.38883,2571.2,2571.0,0.38885]
[1724934768588,0.00584351,2571.4,2571.1,0.60771888]
[1724934768589,3.8896,2571.3,2571.1,0.60771888]
[1724934768788,3.8896,2571.3,2570.7,0.00584351]
[1724934768789,0.38888,2570.8,2570.7,0.00584351]
[1724934769295,6.2229,2570.8,2570.7,0.00584351]
[1724934769496,0.38899,2570.1,2570.0,3.2078]
[1724934769699,0.38896,2570.3,2569.6,4.18046]
[1724934769891,0.38897,2570.2,2570.1,0.38898]
[1724934770088,2.97444381,2571.2,2570.2,0.97243]
[1724934770285,0.38886,2571.0,2570.8,0.38887]
[1724934770591,0.35794351,2571.2,2571.1,0.38884]
[1724934770792,0.00584351,2571.2,2571.1,0.38884]
[1724934770996,0.00584351,2571.2,2571.1,4.27844]
[1724934771388,0.00584351,2571.2,2571.1,0.38884]
[1724934772097,0.38884,2571.1,2571.0,0.38884]
[1724934772298,0.00584351,2571.2,2571.1,0.38884]
[1724934772786,0.00584351,2571.2,2571.1,4.27844]
[1724934773485,0.9721,2571.1,2570.6,4.67584351]
[1724934773686,0.9721,2571.1,2570.7,0.38889]
[1724934773687,0.38889,2570.8,2570.7,0.38889]
[1724934773884,0.3889,2570.7,2570.6,0.00584351]
[1724934774495,5.25155,2570.7,2570.6,0.00584351]
[1724934775995,12.2238,2570.7,2570.6,0.00584351]
[1724934776196,12.2238,2570.7,2569.8,3.2078]
[1724934776197,0.38902,2569.9,2569.8,3.2078]
[1724934776398,3.2078,2570.5,2569.8,3.8912]
[1724934776595,0.97226,2570.7,2570.1,3.2078]
[1724934776800,0.38895,2570.4,2570.2,0.38897]
[1724934776997,3.8904,2570.7,2569.9,0.88116201]
[1724934777197,3.8904,2570.7,2570.0,0.00584351]
[1724934777198,0.38899,2570.1,2570.0,0.00584351]
[1724934777700,4.28019,2570.1,2570.0,0.00584351]
[1724934778599,3.2078,2570.2,2570.0,0.00584351]
[1724934778905,0.38896,2570.3,2569.6,0.88125425]
[1724934778906,3.2078,2570.1,2569.6,0.88125425]
[1724934779201,0.38921,2568.7,2568.4,0.38924]
[1724934779388,0.38922,2568.6,2568.3,0.38925]
[1724934779593,4.07710826,2568.6,2568.0,0.88155956]
[1724934779797,4.07710826,2568.6,2568.4,0.38924]
[1724934780097,3.2078,2569.0,2568.2,3.2078]
[1724934780098,0.00584351,2568.8,2568.7,0.3892]
[1724934780397,0.00584351,2568.8,2568.7,1.36221]
[1724934780601,0.38907,2569.6,2569.2,0.38911]
[1724934780800,3.2078,2569.7,2569.0,0.38914]
[1724934780998,6.57957278,2570.0,2569.1,3.81594655]
[1724934781200,3.5827,2570.0,2568.8,4.08923774]
[1724934781400,3.2078,2570.0,2569.4,3.2078]
[1724934781593,3.2078,2570.0,2569.0,4.67]
[1724934781594,0.38903,2569.9,2569.5,0.38907]
[1724934781790,3.21364351,2570.0,2569.4,0.00584351]
[1724934782001,0.38904,2569.8,2569.5,0.38908]
[1724934782200,3.21364351,2570.0,2569.4,3.21364351]
[1724934782397,0.00584351,2570.0,2569.8,0.38903]
[1724934782592,0.39485351,2570.0,2569.4,3.21364351]
[1724934782907,0.00584351,2570.0,2569.8,0.38903]
[1724934784398,3.8912,2569.9,2569.4,3.21364351]
[1724934784598,0.38906,2569.7,2569.4,3.60272351]
[1724934784904,4.41175558,2569.9,2569.4,3.21364351]
[1724934785098,0.38904,2569.8,2569.5,0.38908]
[1724934785298,3.21364351,2570.0,2569.4,3.60273351]
[1724934785299,0.38907,2569.6,2569.4,3.60273351]
[1724934785504,0.38908,2569.5,2569.4,3.21364351]
[1724934785710,0.38907,2569.6,2569.4,3.21364351]
[1724934786006,0.38908,2569.5,2569.4,0.00584351]
[1724934786507,5.25378,2569.5,2569.4,0.00584351]
[1724934787007,0.38918,2568.9,2568.7,0.38919]
[1724934787208,0.38916,2569.0,2568.8,0.38918]
[1724934787599,0.38917,2568.9,2568.7,0.38919]
[1724934787999,4.19759137,2569.2,2568.5,4.19489568]
[1724934788206,0.38921,2568.7,2568.5,4.58412568]
[1724934788405,0.97289,2569.0,2568.5,4.19489568]
[1724934788708,0.38921,2568.6,2568.5,4.19489568]
[1724934788910,3.2078,2569.1,2568.5,4.19489568]
[1724934788911,0.38919,2568.8,2568.5,4.19489568]
[1724934789113,3.2078,2569.1,2568.5,4.19489568]
[1724934789114,0.38921,2568.6,2568.5,4.19489568]
[1724934789497,4.18068,2569.1,2568.5,4.58411568]
[1724934789498,4.09488643,2569.0,2568.5,4.58411568]
[1724934789708,0.3892,2568.8,2568.6,0.3892]
[1724934789905,1.36225,2568.6,2568.5,0.00389568]
[1724934790313,5.25585,2568.6,2568.5,0.00389568]
[1724934790811,5.25585,2568.6,2567.7,7.2141]
[1724934790812,13.98262043,2568.6,2567.5,3.2078]
[1724934791013,0.38937,2567.6,2567.5,3.2078]
[1724934791199,0.97334,2567.9,2567.0,40.8]
[1724934791200,0.38938,2567.5,2567.2,0.38942]
[1724934791511,0.97334,2567.9,2567.1,0.38944]
[1724934791512,0.3894,2567.4,2567.1,0.38944]
[1724934791721,0.3894,2567.4,2566.7,3.2078]
[1724934791722,0.38943,2567.2,2566.9,0.38947]
[1724934791911,0.97342,2567.6,2567.0,0.38945]
[1724934791912,0.00584351,2567.5,2567.0,0.38945]
[1724934792100,0.3894,2567.4,2566.8,40.8]
[1724934792307,0.38942,2567.3,2567.0,0.38945]
[1724934792608,0.00584351,2567.5,2567.2,3.2078]
[1724934792911,0.00584351,2567.5,2567.4,0.3894]
[1724934793305,0.00584351,2567.5,2567.4,4.2846]
[1724934793505,0.00584351,2567.5,2567.4,5.2581]
[1724934793702,0.00584351,2567.5,2567.4,4.2846]
[1724934793905,0.00584351,2567.5,2567.4,0.3894]
[1724934794101,0.00584351,2567.5,2567.3,3.2078]
[1724934794305,0.38943,2567.2,2566.9,0.38946]
[1724934794510,0.00584351,2567.5,2567.1,0.38944]
[1724934794511,4.78987093,2567.4,2567.1,0.38944]
[1724934794819,0.38945,2567.1,2566.8,3.59728]
[1724934795004,0.00584351,2567.5,2566.8,3.2078]
[1724934795313,0.00584351,2567.5,2567.1,0.38943]
[1724934795314,0.3894,2567.4,2567.1,0.38943]
[1724934795607,0.00584351,2567.5,2566.8,3.2078]
[1724934795807,4.26645509,2567.3,2567.2,0.38943]
[1724934796018,0.39523351,2567.5,2567.2,0.38943]
[1724934796201,0.00584351,2567.5,2567.3,0.3894]
[1724934796405,0.00584351,2567.5,2567.4,0.3894]
[1724934796707,0.00584351,2567.5,2567.3,0.3894]
[1724934796909,4.46183006,2567.5,2567.2,0.38942]
[1724934797102,4.46183006,2567.5,2567.3,0.38941]
[1724934797103,4.07244006,2567.5,2567.3,0.38941]
[1724934797305,0.39522351,2567.5,2567.3,0.38941]
[1724934797504,0.39522351,2567.5,2567.2,0.38941]
[1724934797702,0.39522351,2567.5,2567.3,0.38941]
[1724934797908,0.00584351,2567.5,2567.4,0.3894]
[1724934798512,3.2078,2567.8,2567.7,0.38935]
[1724934798811,3.59707,2568.3,2568.0,0.38929]
[1724934799012,3.2078,2568.3,2567.8,0.38932]
[1724934799208,0.38931,2568.0,2567.8,0.38934]
[1724934799402,0.38934,2567.8,2567.6,0.38936]
[1724934799820,0.38935,2567.7,2567.5,0.38937]
[1724934800006,0.97335,2567.8,2567.4,0.00584351]
[1724934800313,0.97911351,2568.0,2567.4,0.00584351]
[1724934800314,4.24939946,2567.7,2567.6,0.38937]
[1724934800510,0.00584351,2568.0,2567.4,3.21364351]
[1724934800817,0.00584351,2568.0,2567.9,0.38932]
[1724934801205,0.38934,2567.8,2567.4,0.00584351]
[1724934801404,3.90024351,2568.0,2567.5,40.8]
[1724934801405,0.00584351,2568.0,2567.5,40.8]
[1724934801617,0.00584351,2568.0,2567.9,0.38932]
[1724934802018,0.00584351,2568.0,2567.5,45.6581]
[1724934802019,0.38933,2567.9,2567.5,45.6581]
[1724934802208,0.00584351,2568.0,2567.7,0.38935]
[1724934802403,0.38934,2567.8,2567.6,0.38936]
[1724934802613,0.00584351,2568.0,2567.6,0.38936]
[1724934802917,0.38933,2567.9,2567.7,0.38934]
[1724934803111,0.00584351,2568.0,2567.5,41.55747]
[1724934803316,0.39515351,2568.0,2567.8,0.38934]
[1724934803513,0.38932,2567.9,2567.7,0.38934]
[1724934804017,0.00584351,2568.0,2567.6,3.2078]
[1724934804316,0.00584351,2568.0,2567.9,0.38932]
[1724934804617,0.00584351,2568.0,2567.6,3.2078]
[1724934804816,0.00584351,2568.0,2567.9,0.38932]
[1724934805115,0.38935,2567.7,2567.6,3.2078]
[1724934805309,0.97333,2567.9,2567.4,0.00584351]
[1724934805509,0.38938,2567.6,2567.4,0.39523351]
[1724934805912,0.38936,2567.7,2567.5,0.38938]
[1724934806108,4.74956237,2567.8,2567.4,0.00584351]
[1724934806308,0.00584351,2568.0,2567.4,0.00584351]
[1724934806511,0.97331,2567.9,2567.4,0.00584351]
[1724934806723,4.40608682,2567.9,2567.4,0.00584351]
[1724934806913,0.38938,2567.5,2567.4,0.00584351]
[1724934807122,0.38937,2567.6,2567.5,0.38938]
[1724934807415,0.38936,2567.7,2567.6,0.38937]
[1724934807616,0.00584351,2568.0,2567.4,0.00584351]
[1724934807809,0.97913351,2568.0,2567.6,0.38936]
[1724934808006,0.38938,2567.5,2567.4,0.39523351]
[1724934808310,0.38938,2567.5,2567.4,0.00584351]
[1724934808505,5.25804,2567.5,2567.4,0.00584351]
[1724934808907,0.38947,2567.0,2566.8,3.2078]
[1724934809315,0.38947,2566.9,2566.8,3.2078]
[1724934810018,0.38947,2567.0,2566.8,3.59728]
[1724934810325,0.38947,2566.9,2566.8,3.2078]
[1724934812117,0.97373,2566.8,2566.0,3.891]
[1724934812314,0.38953,2566.6,2566.4,0.38954]
[1724934812516,0.38953,2566.5,2566.4,0.38954]
[1724934812706,0.38953,2566.6,2566.4,0.38954]
[1724934813112,0.38953,2566.6,2566.5,0.38953]
[1724934813714,0.38953,2566.6,2566.4,0.38954]
[1724934813913,0.38955,2566.4,2566.2,3.2078]
[1724934814116,0.38956,2566.3,2566.2,3.59737]
[1724934814313,0.38954,2566.5,2566.4,0.38955]
[1724934814517,0.00584351,2566.7,2566.2,3.2078]
[1724934814821,0.00584351,2566.7,2566.6,0.38952]
[1724934815125,0.39535351,2566.7,2566.2,3.2078]
[1724934815311,0.39535351,2566.7,2566.6,0.38952]
[1724934815514,0.00584351,2566.7,2566.2,3.2078]
[1724934815712,0.38952,2566.6,2566.2,3.2078]
[1724934815915,0.00584351,2566.7,2566.5,0.38952]
[1724934816216,0.00584351,2566.7,2566.6,0.38952]
[1724934816726,0.00584351,2566.7,2566.6,12.23312]
[1724934816912,0.3728,2567.5,2566.8,0.97373]
[1724934817118,0.3728,2567.5,2567.4,0.3894]
[1724934817317,3.8952,2567.5,2567.4,0.3894]
[1724934817626,4.28458,2567.5,2567.4,0.3894]
[1724934818012,3.2078,2568.1,2567.6,0.38937]
[1724934818013,0.00584351,2567.7,2567.6,0.38937]
[1724934818332,0.00584351,2567.7,2567.3,3.2078]
[1724934818333,4.16598596,2567.7,2567.3,3.2078]
[1724934818620,4.16598596,2567.7,2567.6,0.38937]
[1724934818621,0.00584351,2567.7,2567.6,0.38937]
[1724934819018,0.3698,2568.2,2568.1,0.38929]
[1724934819213,0.3552,2568.3,2568.2,0.38928]
[1724934819419,3.8936,2568.3,2568.2,0.38928]
[1724934819717,0.3613,2568.7,2567.9,3.2078]
[1724934819917,7.6978,2568.6,2567.8,0.38933]
[1724934820118,5.03787265,2568.4,2567.9,0.38931]
[1724934820322,0.00584351,2568.5,2567.9,4.49]
[1724934820527,0.00584351,2568.5,2568.4,4.57017]
[1724934820718,0.97275,2569.4,2569.2,0.38912]
[1724934820719,3.2078,2569.4,2569.2,0.38912]
[1724934820921,3.2078,2569.9,2568.8,3.2078]
[1724934821217,4.49707307,2569.6,2568.8,4.18076]
[1724934821419,4.49707307,2569.6,2569.5,0.38908]
[1724934821633,0.3778,2570.0,2569.1,3.2078]
[1724934821928,0.00584351,2569.8,2569.5,0.38907]
[1724934822225,0.00584351,2569.8,2569.7,0.38905]
[1724934823023,0.00584351,2569.8,2569.7,4.28025]
[1724934823223,3.2078,2571.0,2569.7,10.2808]
[1724934823417,3.2078,2571.0,2570.4,3.2078]
[1724934823924,3.2078,2571.0,2570.5,40.8]
[1724934824319,3.21364351,2571.0,2570.7,0.38889]
[1724934824723,3.21364351,2571.0,2570.6,0.00584351]
[1724934824933,3.21364351,2571.0,2570.6,0.39475351]
[1724934825114,3.21364351,2571.0,2570.7,0.3889]
[1724934825319,3.21364351,2571.0,2570.9,0.38887]
[1724934825513,3.21364351,2571.0,2570.8,0.38888]
[1724934825721,3.21364351,2571.0,2570.6,0.39474351]
[1724934825924,0.00584351,2571.0,2570.9,3.59667]
[1724934826315,0.00584351,2571.0,2570.9,7.48627]
[1724934826521,0.00195133,2571.0,2570.9,7.48627]
[1724934827124,0.00195133,2571.0,2570.9,13.48627]
[1724934828717,3.2078,2571.9,2571.0,0.75644867]
[1724934828914,3.2078,2571.9,2571.2,0.38881]
[1724934829117,0.38878,2571.5,2571.2,0.38881]
[1724934829532,0.38877,2571.6,2571.3,0.3888]
[1724934829728,0.00584351,2571.7,2571.6,0.38875]
[1724934829929,0.00584351,2571.7,2571.6,3.59655]
[1724934830130,0.00584351,2571.7,2571.6,7.48535]
[1724934830323,0.00584351,2571.7,2571.6,48.28535]
[1724934831222,0.00584351,2571.7,2571.3,3.2078]
[1724934831427,0.00584351,2571.7,2571.0,3.96424867]
[1724934831626,0.38879,2571.5,2571.2,0.38882]
[1724934831823,7.32572793,2571.6,2571.0,3.2078]
[1724934832024,3.2078,2571.3,2570.7,3.2078]
[1724934832225,3.2078,2571.4,2570.7,3.2078]
[1724934832425,0.38887,2570.9,2570.7,3.2078]
[1724934832632,0.38884,2571.1,2570.8,0.38888]
[1724934832825,4.21574533,2571.4,2571.3,0.38881]
[1724934833022,0.38879,2571.5,2571.2,0.38882]
[1724934833221,0.97187,2571.8,2571.1,0.38883]
[1724934833428,4.17967,2571.8,2570.7,3.2078]
[1724934833621,0.97191,2571.6,2570.7,3.2078]
[1724934833836,0.38883,2571.2,2570.9,0.38885]
[1724934834731,0.97195,2571.5,2570.9,0.38885]
[1724934834936,0.38883,2571.2,2570.9,0.38885]
[1724934835131,0.38883,2571.2,2571.0,0.38885]
[1724934835733,0.97195,2571.5,2570.7,3.2078]
[1724934836028,0.38888,2570.8,2570.7,3.2078]
[1724934836232,0.3889,2570.7,2570.6,0.00584351]
[1724934836835,5.25155,2570.7,2570.6,0.00584351]
[1724934837538,11.25155,2570.7,2570.6,0.00584351]
[1724934837839,18.62045304,2570.7,2570.6,0.00584351]
[1724934838336,11.64820304,2570.7,2570.6,0.00584351]
[1724934838537,3.2078,2570.7,2570.6,0.00584351]
[1724934838730,7.4871,2570.7,2570.6,0.00584351]
[1724934839437,4.2793,2570.7,2570.6,0.00584351]
[1724934839637,0.3889,2570.7,2570.6,0.00584351]
[1724934839940,5.25155,2570.7,2570.6,0.00584351]
[1724934840146,0.38897,2570.2,2570.1,3.2078]
[1724934840441,1.36141,2570.2,2570.1,3.2078]
[1724934840738,0.38888,2570.8,2570.1,7.099]
[1724934840940,0.38893,2570.5,2570.1,3.2078]
[1724934841126,5.07543259,2570.9,2570.1,3.2078]
[1724934841333,0.00584351,2570.6,2570.2,0.38896]
[1724934841534,0.00584351,2570.6,2570.5,0.38893]
[1724934842342,0.00584351,2570.6,2570.5,4.27933]
[1724934842639,0.00584351,2570.6,2570.5,0.38893]
[1724934843031,0.00584351,2570.6,2569.9,8.66032]
[1724934843233,0.38893,2570.5,2570.4,0.38894]
[1724934843429,0.38899,2570.1,2569.9,7.6878]
[1724934843634,0.38899,2570.1,2569.9,3.2078]
[1724934843838,1.36147,2570.1,2569.9,3.2078]
[1724934844043,5.25267,2570.1,2569.9,3.2078]
[1724934844453,15.73937413,2570.1,2569.7,0.38904]
[1724934844642,15.73937413,2570.1,2569.6,4.86905]
[1724934844643,8.76689413,2570.1,2569.6,4.86905]
[1724934844954,0.38905,2569.7,2569.5,3.89]
[1724934845133,0.97251,2570.0,2569.1,3.2078]
[1724934845335,3.2078,2570.1,2569.0,4.48]
[1724934845549,0.3891,2569.4,2569.1,0.38913]
[1724934845743,0.3891,2569.4,2569.1,0.38914]
[1724934846157,0.38909,2569.5,2569.2,0.38912]
[1724934846441,0.38907,2569.6,2569.3,0.38911]
[1724934847044,0.38907,2569.6,2569.0,4.48584351]
[1724934847045,0.38908,2569.5,2569.0,0.00584351]
[1724934847249,4.89973117,2569.5,2569.0,0.00584351]
[1724934847439,0.38913,2569.2,2569.0,0.00584351]
[1724934847742,0.38914,2569.1,2569.0,0.00584351]
[1724934847942,0.38914,2569.1,2568.4,3.89]
[1724934847943,4.35909575,2569.1,2568.4,3.2078]
[1724934848249,0.38921,2568.7,2568.4,3.2078]
[1724934848440,3.2078,2569.0,2568.4,7.6878]
[1724934848639,0.38914,2569.1,2568.6,0.38921]
[1724934848939,0.00584351,2569.1,2568.7,0.3892]
[1724934849139,0.00584351,2569.1,2568.6,0.00584351]
[1724934849140,0.39499351,2569.1,2568.6,0.39505351]
[1724934849439,4.43518111,2569.0,2568.6,0.00584351]
[1724934849648,11.53578111,2569.0,2568.6,0.00584351]
[1724934849848,0.3892,2568.7,2568.6,0.00584351]
[1724934850047,0.97297,2568.8,2567.8,4.48]
[1724934850345,0.3572,2568.6,2568.2,0.38927]
[1724934850551,0.3572,2568.6,2567.8,45.28]
[1724934850740,0.3572,2568.6,2568.0,3.2078]
[1724934850940,0.38924,2568.5,2568.0,3.60294351]
[1724934851342,0.38924,2568.5,2568.1,0.38929]
[1724934851544,0.3572,2568.6,2568.1,4.48]
[1724934851764,0.39499351,2569.1,2568.6,0.3892]
[1724934851949,0.00584351,2569.1,2568.7,0.38919]
[1724934852155,0.00584351,2569.1,2568.7,4.48]
[1724934852348,0.00584351,2569.1,2569.0,0.38915]
[1724934852546,0.00584351,2569.1,2569.0,8.76195]
[1724934853345,0.00584351,2569.1,2569.0,14.76195]
[1724934853939,0.3849,2569.8,2569.4,0.38908]
[1724934854149,0.3849,2569.8,2569.4,0.38909]
[1724934854356,0.77395,2569.8,2569.3,4.48]
[1724934854648,0.3891,2569.4,2569.0,4.86914]
[1724934854854,0.38911,2569.3,2569.0,4.86914]
[1724934855042,0.38911,2569.3,2569.0,4.48]
[1724934855243,0.38911,2569.3,2569.0,4.86915]
[1724934855641,0.00584351,2569.4,2569.0,4.48]
[1724934855843,0.00584351,2569.4,2568.9,3.60280351]
[1724934856045,3.21364351,2569.4,2568.9,3.21364351]
[1724934856252,0.38915,2569.0,2568.9,3.21364351]
[1724934856455,0.38915,2569.1,2568.9,3.21364351]
[1724934856949,0.38913,2569.2,2568.9,3.60280351]
[1724934857150,0.38915,2569.0,2568.9,3.21364351]
[1724934857451,4.28195,2569.0,2568.9,3.21364351]
[1724934857953,15.61714174,2569.0,2568.4,0.38924]
[1724934858148,0.38919,2568.8,2568.5,0.38923]
[1724934858452,0.38924,2568.5,2568.3,3.2078]
[1724934858641,0.97293,2568.9,2568.3,3.59706]
[1724934858842,0.97293,2568.9,2568.6,0.38921]
[1724934858843,0.38918,2568.9,2568.6,0.38921]
[1724934859040,1.34829,2569.1,2568.3,7.88364351]
[1724934859041,0.3754,2569.1,2568.3,7.88364351]
[1724934859258,0.3754,2569.1,2568.8,0.38917]
[1724934859453,0.76454,2569.1,2568.8,0.38917]
[1724934859652,0.38916,2569.0,2568.7,0.38919]
[1724934859948,0.38911,2569.3,2569.0,0.38915]
[1724934860545,0.38912,2569.3,2569.0,0.38914]
[1724934860746,3.21364351,2569.4,2568.6,3.2078]
[1724934861045,0.38912,2569.3,2569.0,0.38915]
[1724934861245,0.00584351,2569.4,2569.3,0.38911]
[1724934861450,0.00584351,2569.4,2568.9,3.2078]
[1724934861649,0.00584351,2569.4,2569.3,0.38911]
[1724934861952,0.00584351,2569.4,2569.3,4.56969]
[1724934862163,0.00584351,2569.4,2569.3,14.46169]
[1724934862454,0.3754,2570.0,2569.7,0.38904]
[1724934862654,0.3754,2570.0,2569.3,40.8]
[1724934862845,0.38909,2569.4,2569.0,3.2078]
[1724934863049,0.97259,2569.8,2569.3,0.38911]
[1724934863050,0.38908,2569.6,2569.3,0.38911]
[1724934863454,0.38908,2569.6,2568.7,12.26379]
[1724934863455,4.25515235,2569.7,2569.2,0.00584351]
[1724934863762,0.38911,2569.3,2569.2,0.00584351]
[1724934864149,0.3891,2569.4,2569.2,0.00584351]
[1724934864355,0.38911,2569.3,2569.2,0.00584351]
[1724934865160,10.28111,2569.3,2569.2,0.00584351]
[1724934865362,4.08270632,2569.3,2569.2,0.00584351]
[1724934865658,0.97850351,2569.7,2569.2,0.00584351]
[1724934865659,0.38908,2569.5,2569.2,0.00584351]
[1724934865854,0.00584351,2569.7,2569.2,0.00584351]
[1724934866056,0.38911,2569.3,2569.2,0.00584351]
[1724934866254,0.3891,2569.4,2569.2,0.39496351]
[1724934866658,0.00584351,2569.7,2569.2,0.00584351]
[1724934866959,0.3891,2569.4,2569.2,0.39496351]
[1724934867361,0.38908,2569.5,2569.3,0.3891]
[1724934867767,0.38909,2569.4,2569.2,0.00584351]
[1724934867954,0.00584351,2569.7,2569.5,0.38908]
[1724934868156,0.39490351,2569.7,2569.5,0.38908]
[1724934869054,0.38906,2569.6,2569.5,0.38908]
[1724934869563,0.39490351,2569.7,2569.5,0.38908]
[1724934869858,0.39490351,2569.7,2569.2,0.00584351]
[1724934869859,0.00584351,2569.7,2569.6,0.38906]
[1724934870362,0.00584351,2569.7,2569.5,0.38907]
[1724934870568,0.97850351,2569.7,2569.2,0.00584351]
[1724934870858,1.36189,2569.3,2569.2,0.00584351]
[1724934871162,1.36189,2569.3,2569.2,0.39496351]
[1724934871163,0.38911,2569.3,2569.2,0.39496351]
[1724934871371,4.28111,2569.3,2569.2,0.00584351]
[1724934871757,5.25389,2569.3,2569.2,0.00584351]
[1724934872858,0.38911,2569.3,2569.2,0.00584351]
[1724934873064,0.3891,2569.4,2569.2,0.00584351]
[1724934873255,0.38911,2569.3,2569.2,0.39495351]
[1724934873459,0.38911,2569.3,2569.2,0.00584351]
[1724934873658,6.22667,2569.3,2569.2,0.00584351]
[1724934873858,10.33378267,2569.3,2569.2,0.00584351]
[1724934874459,9.36100267,2569.3,2569.2,0.00584351]
[1724934875461,10.33378267,2569.3,2569.2,0.00584351]
[1724934875769,1.36204,2569.0,2568.9,3.2078]
[1724934875960,8.33493,2569.0,2568.9,3.2078]
[1724934876268,10.66465393,2569.0,2568.9,3.2078]
[1724934876459,0.38925,2568.4,2568.3,4.58026]
[1724934876660,14.32972393,2569.0,2568.4,0.38924]
[1724934876661,0.38924,2568.5,2568.4,0.38924]
[1724934876863,0.38921,2568.6,2568.5,0.38922]
[1724934877954,0.38926,2568.3,2568.2,3.59707]
[1724934878157,0.38926,2568.3,2568.2,3.2078]
[1724934878368,0.38924,2568.5,2568.3,0.38926]
[1724934878557,0.3861,2568.9,2568.4,0.38924]
[1724934878758,4.63454279,2568.7,2568.2,3.2078]
[1724934878958,0.3892,2568.7,2568.2,3.2078]
[1724934879259,0.3861,2568.9,2568.2,3.2078]
[1724934879260,0.38921,2568.6,2568.5,0.38922]
[1724934879466,0.38917,2569.0,2568.5,3.2078]
[1724934879771,0.38916,2569.0,2568.8,0.38917]
[1724934879959,0.38916,2569.0,2568.9,0.38917]
[1724934880155,0.3726,2569.2,2568.9,0.38917]
[1724934880368,0.38916,2569.0,2568.8,0.38918]
[1724934880869,2.86938676,2569.5,2569.1,0.38913]
[1724934880870,2.37060941,2569.5,2569.1,0.38913]
[1724934881169,0.38918,2568.8,2568.7,4.191]
[1724934881370,0.38918,2568.8,2568.6,0.3892]
[1724934881664,0.97288,2569.1,2568.5,3.2078]
[1724934881665,0.3892,2568.7,2568.5,3.2078]
[1724934881865,0.38921,2568.6,2568.5,3.2078]
[1724934882071,4.3144997,2569.0,2568.6,0.38921]
[1724934882365,0.97289,2569.0,2568.5,3.2078]
[1724934882565,0.38921,2568.6,2568.5,3.2078]
[1724934882760,0.38921,2568.7,2568.5,0.38923]
[1724934882962,1.36115,2568.9,2568.2,11.8888]
[1724934883160,4.69969151,2568.9,2568.3,0.60829913]
[1724934883364,0.3882,2568.9,2568.4,0.60829913]
[1724934883557,0.38919,2568.8,2568.6,0.38921]
[1724934883759,0.3882,2568.9,2568.7,0.3892]
[1724934883960,0.38919,2568.8,2568.6,0.3892]
[1724934884160,0.3892,2568.7,2568.6,0.38921]
[1724934884563,1.36115,2568.9,2568.3,0.88153351]
[1724934884766,0.3882,2568.9,2568.5,0.38922]
[1724934884965,0.38921,2568.6,2568.5,0.38922]
[1724934885169,0.38923,2568.5,2568.4,0.38924]
[1724934885367,0.3892,2568.7,2568.5,0.38923]
[1724934885560,0.38921,2568.6,2568.4,0.38924]
[1724934885768,4.11770213,2568.8,2568.5,0.99753744]
[1724934886068,0.38923,2568.6,2568.5,0.38923]
[1724934886265,5.09070213,2568.8,2568.2,3.2078]
[1724934886469,5.09070213,2568.8,2568.3,0.60835741]
[1724934886470,0.97308,2568.6,2568.3,0.60835741]
[1724934886666,0.38925,2568.4,2568.3,0.38926]
[1724934886868,0.38925,2568.4,2568.3,0.99761346]
[1724934887261,1.36237,2568.4,2568.3,0.60835346]
[1724934887463,0.38926,2568.3,2568.2,3.2078]
[1724934887669,0.38926,2568.3,2568.2,4.20545443]
[1724934887865,0.38926,2568.4,2568.3,0.38926]
[1724934888068,0.38926,2568.3,2568.2,3.2078]
[1724934888270,0.38926,2568.3,2568.2,3.59708]
[1724934888577,0.38928,2568.2,2568.1,0.00584351]
[1724934888773,0.38928,2568.2,2568.1,0.61429166]
[1724934888970,4.73948128,2568.3,2568.1,0.00584351]
[1724934889169,2.00095292,2568.4,2568.2,0.60843608]
[1724934889475,0.00584351,2568.4,2568.3,10.00824677]
[1724934889673,1.99510941,2569.0,2568.8,0.38918]
[1724934889979,0.38915,2569.1,2568.9,0.60824136]
[1724934890168,0.38915,2569.1,2568.7,0.38919]
[1724934890363,5.59201941,2569.3,2568.8,42.28974791]
[1724934890570,5.59201941,2569.3,2569.0,0.38915]
[1724934890866,0.38912,2569.2,2569.1,0.60825742]
[1724934891071,0.38912,2569.2,2568.4,4.79937111]
[1724934891072,10.06969722,2569.2,2568.4,4.79937111]
[1724934891280,0.38922,2568.6,2568.5,40.8]
[1724934891468,0.38921,2568.7,2568.5,1.48987431]
[1724934891669,0.38921,2568.7,2568.6,0.60832135]
[1724934894377,0.38925,2568.4,2568.3,3.2078]
[1724934894576,0.38925,2568.4,2568.3,4.69778781]
[1724934894774,0.38925,2568.4,2568.3,4.6977731]
[1724934894969,3.8936,2568.4,2568.3,4.6977731]
[1724934895173,0.38922,2568.6,2568.3,6.57699736]
[1724934895468,0.76781,2568.7,2568.4,1.87920942]
[1724934895674,0.38922,2568.6,2568.5,0.60837227]
[1724934896697,4.28282,2568.6,2568.5,0.60837227]
[1724934897980,8.41729009,2568.6,2568.1,0.00584351]
[1724934898279,0.38926,2568.3,2568.2,1.49000377]
[1724934898480,0.38926,2568.3,2568.2,1.87927377]
[1724934898778,4.52369009,2568.6,2568.2,1.87927377]